bitfinex-derivatives/quotes_BTCF0:USTF0_20241208
["timestamp","ask_amount","ask_price","bid_price","bid_amount"]
[1733639706526,0.035032,99831.0,99830.0,0.08298197]
[1733639706821,0.11995257,99833.0,99830.0,0.04794897]
[1733639707025,0.11995257,99833.0,99832.0,0.035032]
[1733639707233,0.11995257,99833.0,99832.0,0.04942974]
[1733639707832,0.15255257,99834.0,99833.0,0.035032]
[1733639708129,0.15255257,99834.0,99833.0,0.04942974]
[1733639708525,0.0326,99834.0,99833.0,0.04942974]
[1733639708927,0.067631,99834.0,99833.0,0.08197975]
[1733639709127,0.18758357,99834.0,99833.0,0.04971291]
[1733639709323,0.18758357,99834.0,99833.0,0.04971283]
[1733639710626,0.067631,99834.0,99833.0,0.05071283]
[1733639710824,0.18754024,99834.0,99833.0,0.05071283]
[1733639711222,0.18754024,99834.0,99833.0,0.03631509]
[1733639711419,0.18754024,99834.0,99833.0,0.05071248]
[1733639711624,0.18754024,99834.0,99833.0,0.05042931]
[1733639711834,0.067631,99834.0,99833.0,0.05042931]
[1733639712039,0.18754024,99834.0,99833.0,0.05042931]
[1733639712225,0.15250924,99834.0,99833.0,0.05042931]
[1733639712732,0.0326,99834.0,99833.0,0.05042931]
[1733639713032,0.0326,99834.0,99833.0,0.08297933]
[1733639714336,0.11990924,99837.0,99836.0,0.035031]
[1733639714537,0.11990924,99837.0,99836.0,0.04942831]
[1733639714740,0.11990924,99838.0,99837.0,0.03503]
[1733639714928,0.03503,99839.0,99837.0,0.01439703]
[1733639715232,0.03503,99839.0,99838.0,0.04942703]
[1733639720435,0.39583,99839.0,99838.0,0.04942703]
[1733639721339,0.39583,99839.0,99838.0,0.03503]
[1733639721642,0.39583,99839.0,99838.0,0.04942736]
[1733639724343,0.3608,99839.0,99838.0,0.04942736]
[1733639725545,0.395833,99839.0,99838.0,0.04942736]
[1733639726041,0.395833,99839.0,99838.0,0.01439736]
[1733639726242,0.44451355,99839.0,99838.0,0.00813764]
[1733639726542,0.44451355,99839.0,99838.0,0.01439792]
[1733639726939,0.035036,99832.0,99830.0,0.01513768]
[1733639727141,0.40948055,99839.0,99830.0,0.01013768]
[1733639727142,0.066136,99831.0,99830.0,0.01013768]
[1733639727351,0.426936,99831.0,99830.0,0.01439852]
[1733639728436,0.47562139,99831.0,99830.0,0.01439852]
[1733639729252,0.47562139,99831.0,99830.0,0.01539852]
[1733639729937,0.47562139,99831.0,99830.0,0.01439852]
[1733639730132,0.47562139,99831.0,99830.0,0.01539852]
[1733639730747,0.11482139,99831.0,99830.0,0.01539852]
[1733639730945,0.47562139,99831.0,99830.0,0.01539852]
[1733639731245,0.47562329,99831.0,99830.0,0.01539852]
[1733639731449,0.65578959,99831.0,99830.0,0.01539852]
[1733639731745,0.65578959,99831.0,99830.0,0.05043452]
[1733639731946,0.47562214,99831.0,99830.0,0.036036]
[1733639732148,0.47562214,99831.0,99830.0,0.01539873]
[1733639732445,0.47562214,99831.0,99830.0,0.01439873]
[1733639732645,0.47562214,99831.0,99830.0,0.01539873]
[1733639733241,0.47562141,99831.0,99830.0,0.01539873]
[1733639735745,0.47562141,99831.0,99830.0,0.01539887]
[1733639735938,0.426936,99831.0,99830.0,0.01539887]
[1733639736753,0.066136,99831.0,99830.0,0.01539887]
[1733639737054,0.426936,99831.0,99830.0,0.01539887]
[1733639737352,0.3608,99831.0,99830.0,0.05043487]
[1733639742250,0.3608,99831.0,99830.0,0.036036]
[1733639742449,0.3608,99831.0,99830.0,0.05043427]
[1733639743156,0.3608,99834.0,99830.0,0.05043427]
[1733639743353,0.3608,99834.0,99833.0,0.035035]
[1733639743545,0.3608,99834.0,99833.0,0.04943327]
[1733639744058,0.51082465,99834.0,99833.0,0.04943327]
[1733639745654,0.51082465,99834.0,99833.0,0.05043327]
[1733639747754,0.51082465,99834.0,99833.0,0.05071601]
[1733639748766,0.51082465,99834.0,99833.0,0.05043327]
[1733639749170,0.54585965,99834.0,99833.0,0.01539827]
[1733639749354,0.44451851,99834.0,99833.0,0.01539827]
[1733639751775,0.55561121,99834.0,99833.0,0.01539827]
[1733639751965,0.55558456,99834.0,99833.0,0.01539827]
[1733639752664,0.5556727,99834.0,99833.0,0.01539827]
[1733639755370,0.5556727,99834.0,99833.0,0.00500809]
[1733639755573,0.035037,99827.0,99824.0,0.005]
[1733639755774,0.035037,99827.0,99807.0,0.035044]
[1733639755775,0.3608,99825.0,99815.0,0.01055585]
[1733639755977,0.395841,99816.0,99815.0,0.0102731]
[1733639756168,0.40948577,99816.0,99813.0,0.00028321]
[1733639756369,0.40948577,99816.0,99807.0,0.035044]
[1733639756370,0.22876242,99815.0,99811.0,0.00028321]
[1733639756673,0.035043,99811.0,99810.0,0.00028321]
[1733639756863,0.04868577,99811.0,99807.0,0.035044]
[1733639757065,0.035044,99808.0,99807.0,0.035044]
[1733639757780,0.035044,99808.0,99807.0,0.04505512]
[1733639758276,0.15502179,99808.0,99807.0,0.04505512]
[1733639758674,0.15502179,99808.0,99807.0,0.05205512]
[1733639758978,0.15502179,99808.0,99807.0,0.05705512]
[1733639759170,0.035044,99808.0,99807.0,0.05405512]
[1733639759364,0.15498965,99808.0,99807.0,0.05405512]
[1733639759565,0.15498965,99808.0,99807.0,0.01901112]
[1733639759772,0.51578965,99808.0,99807.0,0.01901112]
[1733639759970,0.395844,99808.0,99807.0,0.01901112]
[1733639760474,0.395844,99808.0,99807.0,0.01801112]
[1733639760475,0.57641077,99808.0,99807.0,0.01801112]
[1733639760871,0.57641077,99808.0,99807.0,0.008]
[1733639761181,0.47504425,99808.0,99807.0,0.008]
[1733639761573,0.47504346,99808.0,99807.0,0.008]
[1733639763167,0.426344,99808.0,99807.0,0.008]
[1733639763477,0.57609641,99808.0,99807.0,0.008]
[1733639763780,0.426344,99808.0,99807.0,0.008]
[1733639763980,0.57609715,99808.0,99807.0,0.008]
[1733639764378,0.426344,99808.0,99807.0,0.008]
[1733639765777,0.426344,99808.0,99807.0,0.01300984]
[1733639767480,0.426344,99808.0,99807.0,0.01113116]
[1733639768585,0.57609715,99808.0,99807.0,0.01113116]
[1733639769277,0.575927,99808.0,99807.0,0.01113116]
[1733639769873,0.426344,99808.0,99807.0,0.01113116]
[1733639770075,0.426344,99808.0,99807.0,0.004]
[1733639770274,0.426344,99808.0,99807.0,0.006]
[1733639771282,0.57590244,99808.0,99807.0,0.002]
[1733639771579,0.93670244,99808.0,99807.0,0.002]
[1733639772170,0.035049,99794.0,99793.0,0.85434]
[1733639772382,0.035049,99794.0,99793.0,0.86248146]
[1733639772383,0.395849,99794.0,99793.0,0.86248146]
[1733639773169,0.395849,99794.0,99793.0,0.86748146]
[1733639773481,0.035049,99794.0,99793.0,0.86748146]
[1733639773679,0.395849,99794.0,99793.0,0.86748146]
[1733639774381,0.035049,99794.0,99793.0,0.87759633]
[1733639774773,0.395849,99794.0,99793.0,0.87759633]
[1733639774975,0.395849,99794.0,99793.0,0.88359633]
[1733639775677,0.395849,99794.0,99793.0,0.88359632]
[1733639776384,0.395849,99794.0,99793.0,0.88985898]
[1733639778382,0.48558698,99794.0,99793.0,0.87974411]
[1733639778686,0.395849,99794.0,99793.0,0.87348145]
[1733639779074,0.395849,99794.0,99793.0,0.87536059]
[1733639779274,0.395849,99794.0,99793.0,0.87849202]
[1733639779581,0.395849,99794.0,99793.0,0.88475488]
[1733639780486,0.51549964,99794.0,99793.0,0.88475488]
[1733639781086,0.395849,99794.0,99793.0,0.88475488]
[1733639781593,0.395849,99794.0,99793.0,0.88475478]
[1733639783692,0.54540744,99794.0,99793.0,0.88475478]
[1733639784500,0.44455377,99794.0,99793.0,0.88475478]
[1733639784808,0.44455379,99794.0,99793.0,0.88475478]
[1733639785897,0.44455379,99794.0,99793.0,0.88475538]
[1733639786100,0.44455379,99794.0,99793.0,0.8784923]
[1733639786903,0.44455379,99794.0,99793.0,0.873482]
[1733639787103,0.55190331,99794.0,99793.0,0.873482]
[1733639788003,0.44455379,99794.0,99793.0,0.87974518]
[1733639791109,0.44455379,99794.0,99793.0,0.88993641]
[1733639791500,0.44455575,99794.0,99793.0,0.88993641]
[1733639792404,0.62467608,99794.0,99793.0,0.88993641]
[1733639792598,0.62467354,99794.0,99793.0,0.88993641]
[1733639793100,0.62467354,99794.0,99793.0,0.87553123]
[1733639793407,0.62467354,99794.0,99793.0,0.87974495]
[1733639794109,0.44455575,99794.0,99793.0,0.87974495]
[1733639794408,0.44455497,99794.0,99793.0,0.87974495]
[1733639795004,0.44455497,99794.0,99793.0,0.91479095]
[1733639795207,0.62468027,99794.0,99793.0,0.91479095]
[1733639795400,0.44455497,99794.0,99793.0,0.91479095]
[1733639796002,0.40950597,99794.0,99793.0,0.91479095]
[1733639796204,0.40950597,99794.0,99793.0,0.91507503]
[1733639796403,0.40950597,99794.0,99793.0,0.91479095]
[1733639796598,0.40950597,99794.0,99793.0,0.91479012]
[1733639797502,0.44455097,99794.0,99793.0,0.91479012]
[1733639798410,0.18516793,99799.0,99793.0,0.91479012]
[1733639798609,0.005,99799.0,99798.0,0.035044]
[1733639798808,0.035042,99803.0,99798.0,0.035044]
[1733639798809,0.035042,99803.0,99802.0,0.035043]
[1733639799003,0.035042,99803.0,99802.0,0.04944712]
[1733639799202,0.08373832,99803.0,99802.0,0.04944712]
[1733639799596,0.08373832,99803.0,99802.0,0.035043]
[1733639799801,0.08373832,99803.0,99802.0,0.04944507]
[1733639800103,0.08373806,99803.0,99802.0,0.04944507]
[1733639800300,0.035042,99803.0,99802.0,0.04944507]
[1733639801209,0.035042,99803.0,99802.0,0.05744507]
[1733639802002,0.035042,99803.0,99802.0,0.05544507]
[1733639804110,0.035042,99803.0,99802.0,0.06568019]
[1733639804703,0.035042,99803.0,99802.0,0.06268019]
[1733639804906,0.035042,99803.0,99802.0,0.06668019]
[1733639805403,0.15497067,99803.0,99802.0,0.06668019]
[1733639805606,0.15497067,99803.0,99802.0,0.06568019]
[1733639805919,0.15497067,99803.0,99802.0,0.06668019]
[1733639806414,0.035042,99803.0,99802.0,0.05227812]
[1733639806709,0.035042,99803.0,99802.0,0.06668003]
[1733639807305,0.035042,99803.0,99802.0,0.06768003]
[1733639807806,0.035042,99803.0,99802.0,0.06568003]
[1733639808210,0.005,99804.0,99803.0,0.035042]
[1733639808406,0.15496967,99807.0,99806.0,0.035041]
[1733639808716,0.15496967,99807.0,99806.0,0.04944291]
[1733639810408,0.035041,99807.0,99806.0,0.04944291]
[1733639811014,0.15496967,99807.0,99806.0,0.05244291]
[1733639811209,0.15496967,99807.0,99806.0,0.05544291]
[1733639811408,0.15496967,99807.0,99806.0,0.05444291]
[1733639812113,0.15496967,99807.0,99806.0,0.0112617]
[1733639812312,0.035045,99794.0,99793.0,0.85434]
[1733639812512,0.395845,99794.0,99793.0,0.85434]
[1733639813811,0.395845,99794.0,99793.0,0.86458296]
[1733639814121,0.395845,99794.0,99793.0,0.86958296]
[1733639814320,0.3608,99794.0,99793.0,0.86958296]
[1733639814618,0.3608,99794.0,99793.0,0.90462896]
[1733639815016,0.3608,99794.0,99793.0,0.91062896]
[1733639815414,0.3608,99794.0,99793.0,0.91091257]
[1733639816021,0.3608,99794.0,99793.0,0.91062896]
[1733639816022,0.48576659,99794.0,99793.0,0.91062896]
[1733639816518,0.395845,99794.0,99793.0,0.91091255]
[1733639816711,0.395845,99794.0,99793.0,0.91062896]
[1733639816916,0.395845,99794.0,99793.0,0.91091254]
[1733639817114,0.395845,99794.0,99793.0,0.91062896]
[1733639817310,0.395845,99794.0,99793.0,0.91091256]
[1733639817515,0.395845,99794.0,99793.0,0.91062896]
[1733639817711,0.035045,99794.0,99793.0,0.91062896]
[1733639818913,0.15493245,99794.0,99793.0,0.91062896]
[1733639819112,0.035045,99794.0,99793.0,0.91062896]
[1733639819319,0.15493245,99794.0,99793.0,0.91062896]
[1733639819712,0.15493245,99794.0,99793.0,0.9109126]
[1733639820025,0.15493245,99794.0,99793.0,0.91062896]
[1733639820222,0.15493245,99794.0,99793.0,0.91689122]
[1733639820425,0.15493245,99794.0,99793.0,0.91717486]
[1733639820925,0.035045,99794.0,99793.0,0.94945487]
[1733639821112,0.035045,99794.0,99793.0,0.91689122]
[1733639821309,0.11988745,99794.0,99793.0,0.91689122]
[1733639821515,0.11996852,99797.0,99796.0,0.035045]
[1733639821711,0.11996852,99798.0,99796.0,0.07386921]
[1733639821911,0.11996852,99798.0,99797.0,0.04130626]
[1733639822318,0.11996852,99798.0,99797.0,0.04631577]
[1733639823422,0.005,99799.0,99798.0,0.035044]
[1733639823621,0.035044,99800.0,99799.0,0.035044]
[1733639823824,0.035044,99800.0,99799.0,0.04631577]
[1733639824215,0.035044,99800.0,99799.0,0.04944671]
[1733639825125,0.035044,99800.0,99799.0,0.05244671]
[1733639825624,0.035044,99800.0,99799.0,0.05144671]
[1733639825924,0.035044,99800.0,99799.0,0.05444671]
[1733639826126,0.035044,99800.0,99799.0,0.05444634]
[1733639829417,0.035044,99800.0,99799.0,0.05044634]
[1733639829622,0.035044,99800.0,99799.0,0.05244634]
[1733639830327,0.035044,99800.0,99799.0,0.01740234]
[1733639831627,0.08374481,99800.0,99799.0,0.01768618]
[1733639831932,0.08374481,99800.0,99799.0,0.01740234]
[1733639832426,0.08374481,99800.0,99799.0,0.01540234]
[1733639832619,0.08374481,99800.0,99799.0,0.01640234]
[1733639832820,0.26391274,99800.0,99799.0,0.01640363]
[1733639833526,0.08374481,99800.0,99799.0,0.01640363]
[1733639834027,0.08374481,99800.0,99799.0,0.01440363]
[1733639834225,0.21517588,99800.0,99799.0,0.01540363]
[1733639834637,0.26387669,99800.0,99799.0,0.01540363]
[1733639835725,0.26487669,99800.0,99799.0,0.01540363]
[1733639837430,0.08474481,99800.0,99799.0,0.01540363]
[1733639838237,0.21617566,99800.0,99799.0,0.01540363]
[1733639838536,0.08474481,99800.0,99799.0,0.01540363]
[1733639842428,0.44554481,99800.0,99799.0,0.01540363]
[1733639844831,0.55410705,99800.0,99799.0,0.00914118]
[1733639845032,0.55410705,99800.0,99799.0,0.01540396]
[1733639845235,0.44554481,99800.0,99799.0,0.01540396]
[1733639846537,0.44554481,99800.0,99799.0,0.001]
[1733639846734,0.44554481,99800.0,99799.0,0.00914151]
[1733639846735,0.55406313,99800.0,99799.0,0.00914151]
[1733639846937,0.55406313,99800.0,99799.0,0.01540433]
[1733639847129,0.44554481,99800.0,99799.0,0.01540433]
[1733639847327,0.5538963,99800.0,99799.0,0.01540433]
[1733639847945,0.44554481,99800.0,99799.0,0.01540433]
[1733639850037,0.44554481,99800.0,99799.0,0.01039414]
[1733639850236,0.44554481,99800.0,99799.0,0.01540435]
[1733639851534,0.4455478,99800.0,99799.0,0.01540435]
[1733639855548,0.55383756,99800.0,99799.0,0.01540435]
[1733639856849,0.55383756,99800.0,99799.0,0.00914159]
[1733639857035,0.55383756,99800.0,99799.0,0.00914175]
[1733639857237,0.55383756,99800.0,99799.0,0.001]
[1733639857437,0.55383756,99800.0,99799.0,0.01540453]
[1733639858038,0.55383756,99800.0,99799.0,0.00914169]
[1733639858239,0.55383756,99800.0,99799.0,0.01540462]
[1733639858640,0.55383756,99800.0,99799.0,0.00914169]
[1733639859447,0.7640452,99800.0,99799.0,0.00914169]
[1733639859642,0.55383756,99800.0,99799.0,0.00914169]
[1733639860148,0.44554784,99800.0,99799.0,0.00914169]
[1733639860349,0.55391936,99800.0,99799.0,0.01540443]
[1733639863953,0.55391936,99800.0,99799.0,0.01540483]
[1733639865053,0.55377555,99800.0,99799.0,0.01540483]
[1733639867456,0.55377555,99800.0,99799.0,0.01540462]
[1733639867752,0.67866335,99800.0,99799.0,0.00914174]
[1733639868065,0.035049,99794.0,99793.0,0.85486]
[1733639868244,0.035049,99794.0,99793.0,0.85434]
[1733639868245,0.19198055,99794.0,99793.0,0.85434]
[1733639869154,0.19198055,99794.0,99793.0,0.85634]
[1733639869850,0.0452744,99794.0,99793.0,0.85634]
[1733639870356,0.16954767,99794.0,99793.0,0.85634]
[1733639870549,0.0452744,99794.0,99793.0,0.85834]
[1733639870861,0.09398451,99794.0,99793.0,0.85834]
[1733639871151,0.3254799,99794.0,99793.0,0.85834]
[1733639871357,0.56571637,99794.0,99793.0,0.751357]
[1733639871552,0.3254799,99794.0,99793.0,0.581788]
[1733639871749,0.32557692,99794.0,99793.0,0.390464]
[1733639872348,0.32557692,99794.0,99781.0,0.00010436]
[1733639872349,0.035053,99782.0,99781.0,0.00010436]
[1733639872547,0.756653,99782.0,99781.0,0.00010436]
[1733639872751,0.035059,99765.0,99764.0,0.0101]
[1733639872946,0.44456911,99765.0,99764.0,0.00626468]
[1733639873760,0.035061,99761.0,99760.0,0.00011575]
[1733639873946,0.035061,99761.0,99760.0,0.00638076]
[1733639874153,0.08377111,99761.0,99760.0,0.00638078]
[1733639874359,0.08378282,99761.0,99760.0,0.00638078]
[1733639874559,0.035061,99761.0,99760.0,0.00638078]
[1733639874954,0.08378257,99761.0,99760.0,0.01538078]
[1733639875256,0.035061,99761.0,99760.0,0.00911575]
[1733639875854,0.035061,99761.0,99760.0,0.01111575]
[1733639876563,0.035061,99761.0,99760.0,0.00311575]
[1733639878064,0.035061,99761.0,99760.0,0.00812777]
[1733639878261,0.08378526,99761.0,99760.0,0.00311575]
[1733639878458,0.035061,99761.0,99760.0,0.00311575]
[1733639879866,0.0837883,99761.0,99760.0,0.00311575]
[1733639881157,0.035061,99761.0,99760.0,0.00311575]
[1733639881363,0.08378858,99761.0,99760.0,0.00311575]
[1733639882164,0.1846677,99761.0,99760.0,0.00311575]
[1733639882873,0.035061,99761.0,99760.0,0.00311575]
[1733639883975,0.1846677,99761.0,99760.0,0.00311575]
[1733639884174,0.035061,99761.0,99760.0,0.00311575]
[1733639884970,0.035063,99754.0,99753.0,0.00045]
[1733639885273,0.51547817,99754.0,99753.0,0.00045]
[1733639885671,0.395863,99754.0,99753.0,0.00045]
[1733639886475,0.395863,99754.0,99753.0,0.00445]
[1733639886670,0.395863,99754.0,99753.0,0.00745]
[1733639888569,0.035063,99754.0,99753.0,0.00745]
[1733639888768,0.756663,99754.0,99753.0,0.007]
[1733639889168,0.756663,99754.0,99745.0,0.00011644]
[1733639889169,0.035066,99746.0,99745.0,0.00011644]
[1733639889475,0.51542854,99746.0,99745.0,0.00011644]
[1733639890382,0.395866,99746.0,99745.0,0.00011644]
[1733639890872,0.51642854,99746.0,99745.0,0.00011644]
[1733639891178,0.51642854,99746.0,99732.0,0.00150375]
[1733639891179,0.03507,99733.0,99732.0,0.00150375]
[1733639891374,0.39587,99733.0,99732.0,0.00463731]
[1733639893271,0.39687,99733.0,99732.0,0.00965088]
[1733639895880,0.39687,99733.0,99732.0,0.01591773]
[1733639897082,0.39687,99733.0,99732.0,0.0159175]
[1733639897282,0.39687,99733.0,99732.0,0.01591748]
[1733639897470,0.39687,99733.0,99732.0,0.0159175]
[1733639899286,0.03607,99733.0,99732.0,0.0159175]
[1733639899481,0.39687,99733.0,99732.0,0.0159175]
[1733639900379,0.39687,99733.0,99732.0,0.01620035]
[1733639900774,0.39687,99733.0,99732.0,0.01591753]
[1733639903285,0.39687,99733.0,99732.0,0.01620055]
[1733639904482,0.39687,99733.0,99732.0,0.01591753]
[1733639904986,0.39687,99733.0,99732.0,0.01620066]
[1733639905191,0.39687,99733.0,99732.0,0.01591753]
[1733639907288,0.51641905,99733.0,99732.0,0.01591753]
[1733639907693,0.51641905,99733.0,99732.0,0.01591745]
[1733639907889,0.39687,99733.0,99732.0,0.01591745]
[1733639911597,0.54632318,99733.0,99732.0,0.01591745]
[1733639912190,0.39687,99733.0,99732.0,0.01591745]
[1733639914308,0.39687,99733.0,99732.0,0.01591794]
[1733639917600,0.39687,99733.0,99732.0,0.00150375]
[1733639917806,0.39687,99733.0,99732.0,0.01591782]
[1733639919195,0.57698592,99733.0,99732.0,0.01591782]
[1733639920201,0.39687,99733.0,99732.0,0.01591782]
[1733639922909,0.03607,99733.0,99732.0,0.01591782]
[1733639923104,0.39687,99733.0,99732.0,0.01591782]
[1733639924006,0.57731906,99733.0,99732.0,0.01591782]
[1733639924204,0.39687,99733.0,99732.0,0.01591782]
[1733639924395,0.57731906,99733.0,99732.0,0.01591782]
[1733639924603,0.39687,99733.0,99732.0,0.01591782]
[1733639925204,0.39687,99733.0,99732.0,0.01591846]
[1733639926814,0.50037508,99733.0,99732.0,0.01591846]
[1733639928113,0.50037508,99733.0,99732.0,0.01591842]
[1733639931208,0.50043364,99733.0,99732.0,0.01591842]
[1733639931609,0.50043364,99733.0,99732.0,0.01591837]
[1733639934916,0.50043364,99733.0,99732.0,0.00965114]
[1733639935115,0.50043364,99733.0,99732.0,0.01591861]
[1733639935317,0.50043364,99733.0,99732.0,0.00965114]
[1733639936020,0.50007134,99733.0,99732.0,0.00965114]
[1733639936210,0.71020658,99733.0,99732.0,0.00965114]
[1733639936417,0.50007134,99733.0,99732.0,0.00965114]
[1733639936619,0.71020658,99733.0,99732.0,0.00965114]
[1733639936816,0.50007134,99733.0,99732.0,0.00965114]
[1733639937314,0.49961868,99733.0,99732.0,0.00965114]
[1733639937816,0.61907598,99733.0,99732.0,0.00501378]
[1733639938012,0.035077,99715.0,99714.0,0.0101]
[1733639938317,0.035077,99715.0,99703.0,0.0649]
[1733639938318,0.8586025,99715.0,99703.0,0.0649]
[1733639938617,0.3608,99704.0,99703.0,0.0649]
[1733639938824,0.3608,99704.0,99703.0,0.07116846]
[1733639939015,0.3608,99704.0,99703.0,0.07127311]
[1733639939916,0.3608,99704.0,99703.0,0.10635411]
[1733639941010,0.3608,99704.0,99703.0,0.11235411]
[1733639941320,0.3608,99704.0,99703.0,0.11635411]
[1733639941820,0.005,99709.0,99708.0,0.035079]
[1733639942008,0.3608,99712.0,99711.0,0.035078]
[1733639942210,0.16023532,99714.0,99711.0,0.00626846]
[1733639942513,0.040077,99714.0,99713.0,0.035077]
[1733639942708,0.035077,99714.0,99713.0,0.04134546]
[1733639944425,0.035077,99714.0,99713.0,0.04134445]
[1733639944724,0.035077,99714.0,99713.0,0.04234445]
[1733639945517,0.035077,99714.0,99713.0,0.04434445]
[1733639946717,0.005,99719.0,99714.0,0.035077]
[1733639946718,0.12015832,99716.0,99714.0,0.035077]
[1733639946923,0.040076,99719.0,99717.0,0.035076]
[1733639947125,0.040076,99719.0,99718.0,0.04134345]
[1733639947318,0.035076,99719.0,99718.0,0.04134345]
[1733639948125,0.035076,99719.0,99718.0,0.04635699]
[1733639948324,0.036076,99719.0,99718.0,0.04635699]
[1733639948622,0.036076,99719.0,99718.0,0.04735698]
[1733639949224,0.036076,99719.0,99718.0,0.04635698]
[1733639949423,0.036076,99719.0,99718.0,0.04735698]
[1733639950023,0.036076,99719.0,99718.0,0.05049058]
[1733639950422,0.035076,99719.0,99718.0,0.05149058]
[1733639950619,0.15025436,99723.0,99718.0,0.01641458]
[1733639950821,0.035074,99723.0,99722.0,0.035074]
[1733639951024,0.18532836,99723.0,99722.0,0.04948858]
[1733639951918,0.18632836,99723.0,99722.0,0.04948858]
[1733639952321,0.18632836,99723.0,99722.0,0.05048858]
[1733639952915,0.18632836,99723.0,99722.0,0.04948858]
[1733639953116,0.18632836,99723.0,99722.0,0.05048858]
[1733639953518,0.18732836,99723.0,99722.0,0.05048858]
[1733639954034,0.037074,99723.0,99722.0,0.05048858]
[1733639954337,0.035074,99723.0,99722.0,0.05048858]
[1733639954524,0.035074,99723.0,99722.0,0.0504884]
[1733639956425,0.035074,99723.0,99722.0,0.05077202]
[1733639961130,0.18524961,99723.0,99722.0,0.0504884]
[1733639962130,0.18524961,99723.0,99722.0,0.036074]
[1733639962432,0.18524961,99723.0,99722.0,0.05048842]
[1733639965225,0.15017561,99723.0,99722.0,0.05048842]
[1733639965425,0.005,99724.0,99723.0,0.035074]
[1733639965631,0.005,99729.0,99723.0,0.04700147]
[1733639965826,0.005,99729.0,99728.0,0.21418163]
[1733639966028,0.00011415,99733.0,99732.0,0.035071]
[1733639966231,0.00011415,99733.0,99732.0,0.08207247]
[1733639967429,0.00111415,99733.0,99732.0,0.08207247]
[1733639967731,0.00411415,99733.0,99732.0,0.08207247]
[1733639968130,0.00311415,99733.0,99732.0,0.08207247]
[1733639968838,0.00311415,99733.0,99732.0,0.08206996]
[1733639971938,0.00311415,99733.0,99732.0,0.08714281]
[1733639972144,0.00311415,99733.0,99732.0,0.09215561]
[1733639975341,0.00311415,99733.0,99732.0,0.09215563]
[1733639978541,0.00311415,99733.0,99732.0,0.07210206]
[1733639978741,0.00311415,99733.0,99732.0,0.09215176]
[1733639979436,0.00311415,99733.0,99732.0,0.11213247]
[1733639982245,0.00311415,99733.0,99732.0,0.11213238]
[1733639985443,0.00311415,99733.0,99732.0,0.09772065]
[1733639985644,0.00311415,99733.0,99732.0,0.29120506]
[1733639986050,0.00311415,99733.0,99732.0,0.11213237]
[1733639989044,0.00311415,99733.0,99732.0,0.11213215]
[1733639989551,0.00311415,99733.0,99732.0,0.11213218]
[1733639991447,0.00311415,99733.0,99732.0,0.29120487]
[1733639992454,0.00311415,99733.0,99732.0,0.29120404]
[1733639992643,0.00311415,99733.0,99732.0,0.11213135]
[1733639993049,0.00311415,99733.0,99732.0,0.29119087]
[1733639993246,0.00311415,99733.0,99732.0,0.35117867]
[1733639994050,0.005,99734.0,99733.0,0.03507]
[1733639994250,0.0646,99741.0,99738.0,0.035069]
[1733639994251,0.005,99739.0,99738.0,0.035069]
[1733639994446,0.0646,99741.0,99740.0,0.035068]
[1733639994753,0.0646,99741.0,99740.0,0.04947975]
[1733639995444,0.0646,99741.0,99740.0,0.22864552]
[1733639995852,0.0646,99741.0,99740.0,0.22864444]
[1733639996249,0.0646,99741.0,99740.0,0.04947867]
[1733639996448,0.0726,99741.0,99740.0,0.22873113]
[1733639997853,0.0726,99741.0,99740.0,0.0820589]
[1733639998059,0.008,99741.0,99740.0,0.42126148]
[1733639998261,0.008,99741.0,99740.0,0.42117786]
[1733639998560,0.008,99741.0,99740.0,0.18231907]
[1733639999453,0.09012466,99744.0,99740.0,0.39703173]
[1733639999660,0.09012466,99744.0,99743.0,0.035067]
[1733639999861,0.09012466,99744.0,99743.0,0.08205572]
[1733640000468,0.09012466,99744.0,99743.0,0.18231287]
[1733640000658,0.005,99745.0,99744.0,0.035067]
[1733640000860,0.09009572,99748.0,99746.0,0.035066]
[1733640001053,0.00512326,99750.0,99747.0,0.04698872]
[1733640001054,0.09521898,99750.0,99747.0,0.04698872]
[1733640001361,0.00512326,99750.0,99749.0,0.395865]
[1733640001551,0.00012326,99750.0,99749.0,0.42844305]
[1733640001756,0.00012326,99750.0,99749.0,0.44285078]
[1733640002159,0.00012326,99750.0,99749.0,0.5431019]
[1733640002871,0.00012326,99750.0,99749.0,0.5451019]
[1733640003364,0.00012326,99750.0,99749.0,0.5481019]
[1733640003564,0.00012326,99750.0,99749.0,0.72686585]
[1733640004568,0.00012326,99750.0,99749.0,0.5481019]
[1733640004767,0.00012326,99750.0,99749.0,0.55813307]
[1733640005167,0.00012326,99750.0,99749.0,0.55812911]
[1733640006162,0.005,99755.0,99754.0,0.035063]
[1733640006362,0.01,99770.0,99754.0,0.04698182]
[1733640006363,0.0306,99769.0,99754.0,0.04698182]
[1733640006659,0.0306,99769.0,99768.0,0.395858]
[1733640006963,0.0312,99776.0,99775.0,0.035056]
[1733640007161,0.0312,99776.0,99775.0,0.08213353]
[1733640007861,0.12129572,99785.0,99775.0,0.18236556]
[1733640008174,0.12129572,99785.0,99779.0,0.035054]
[1733640008175,0.0312,99785.0,99779.0,0.035054]
[1733640008363,0.0312,99785.0,99779.0,0.04698182]
[1733640008564,0.0312,99785.0,99777.0,0.3608]
[1733640008565,0.0312,99785.0,99784.0,0.035052]
[1733640008763,0.0312,99785.0,99784.0,0.04945617]
[1733640008963,0.0312,99785.0,99784.0,0.08202214]
[1733640009862,0.0312,99785.0,99784.0,0.08302214]
[1733640010865,0.0312,99785.0,99784.0,0.08402214]
[1733640011779,0.0312,99785.0,99784.0,0.05145617]
[1733640011964,0.0312,99785.0,99784.0,0.08402161]
[1733640015167,0.0312,99785.0,99784.0,0.05145617]
[1733640015377,0.0312,99785.0,99784.0,0.08402149]
[1733640016669,0.0312,99785.0,99784.0,0.06398129]
[1733640016870,0.0312,99785.0,99784.0,0.08402178]
[1733640017181,0.0312,99785.0,99784.0,0.06398129]
[1733640018073,0.0312,99785.0,99784.0,0.08402193]
[1733640018875,0.0312,99785.0,99784.0,0.037052]
[1733640019178,0.0312,99785.0,99784.0,0.08402183]
[1733640023190,0.0312,99785.0,99784.0,0.037052]
[1733640024083,0.0312,99785.0,99784.0,0.05709246]
[1733640024282,0.0312,99785.0,99784.0,0.06961775]
[1733640024472,0.0312,99785.0,99784.0,0.04957729]
[1733640025280,0.0312,99785.0,99784.0,0.08430379]
[1733640025476,0.0312,99785.0,99784.0,0.08402181]
[1733640027990,0.0312,99785.0,99784.0,0.08402174]
[1733640031487,0.0312,99785.0,99784.0,0.08402176]
[1733640034480,0.12129572,99785.0,99784.0,0.08402176]
[1733640034885,0.12129572,99785.0,99784.0,0.08089045]